[Event "Titled Tuesday Blitz June 20 Late 2023"]
[White "Xiong, Jeffery"]
[Black "Salimova, Nurgyul"]
[WhiteFideId "2047640"]
[BlackFideId "2915138"]
[WhiteElo "2726"]
[BlackElo "2343"]
[Result "1-0"]
[Round "7"]
[TimeControl "180+2"]
[Date "2023.06.20"]
[WhiteClock "0:01:50"]
[BlackClock "0:00:00"]
[Board "12"]

1. e4 {[%clk 0:03:00]}  e5 {[%clk 0:02:59]} 2. Nf3 {[%clk 0:03:01]}  Nc6 {[%clk 0:03:00]} 3. Nc3 {[%clk 0:03:01]}  Nf6 {[%clk 0:02:59]} 4. d4 {[%clk 0:03:02]}  exd4 {[%clk 0:02:59]} 5. Nxd4 {[%clk 0:03:03]}  Bb4 {[%clk 0:02:59]} 6. Nxc6 {[%clk 0:03:04]}  bxc6 {[%clk 0:03:00]} 7. Bd3 {[%clk 0:03:04]}  d5 {[%clk 0:03:00]} 8. exd5 {[%clk 0:03:05]}  O-O {[%clk 0:03:00]} 9. O-O {[%clk 0:03:06]}  cxd5 {[%clk 0:03:00]} 10. h3 {[%clk 0:03:06]}  c6 {[%clk 0:02:51]} 11. Qf3 {[%clk 0:03:07]}  Bd6 {[%clk 0:02:47]} 12. Bf4 {[%clk 0:03:07]}  Rb8 {[%clk 0:02:43]} 13. b3 {[%clk 0:03:07]}  Rb4 {[%clk 0:02:34]} 14. Ne2 {[%clk 0:03:07]}  Bxf4 {[%clk 0:02:23]} 15. Nxf4 {[%clk 0:03:08]}  Qd6 {[%clk 0:02:21]} 16. c4 {[%clk 0:03:09]}  g6 {[%clk 0:01:31]} 17. Rfd1 {[%clk 0:03:06]}  Kg7 {[%clk 0:01:19]} 18. Bc2 {[%clk 0:03:06]}  d4 {[%clk 0:01:09]} 19. c5 {[%clk 0:03:06]}  Qd7 {[%clk 0:00:47]} 20. a3 {[%clk 0:03:02]}  Rb8 {[%clk 0:00:46]} 21. Ne2 {[%clk 0:02:53]}  Qe7 {[%clk 0:00:35]} 22. b4 {[%clk 0:02:52]}  Be6 {[%clk 0:00:34]} 23. Nxd4 {[%clk 0:02:51]}  Bd5 {[%clk 0:00:34]} 24. Qf4 {[%clk 0:02:49]}  a5 {[%clk 0:00:26]} 25. Re1 {[%clk 0:02:41]}  Qd8 {[%clk 0:00:27]} 26. Qd2 {[%clk 0:02:39]}  axb4 {[%clk 0:00:24]} 27. axb4 {[%clk 0:02:40]}  Re8 {[%clk 0:00:21]} 28. Qc3 {[%clk 0:02:40]}  Rxe1+ {[%clk 0:00:19]} 29. Rxe1 {[%clk 0:02:41]}  Kg8 {[%clk 0:00:19]} 30. Bd3 {[%clk 0:02:30]}  h5 {[%clk 0:00:19]} 31. b5 {[%clk 0:02:11]}  cxb5 {[%clk 0:00:18]} 32. Nxb5 {[%clk 0:02:12]}  Rc8 {[%clk 0:00:15]} 33. Qd4 {[%clk 0:02:11]}  Bxg2 {[%clk 0:00:12]} 34. Kxg2 {[%clk 0:02:09]}  Qxd4 {[%clk 0:00:11]} 35. Nxd4 {[%clk 0:02:09]}  Rxc5 {[%clk 0:00:09]} 36. Nf3 {[%clk 0:02:08]}  Kg7 {[%clk 0:00:09]} 37. Kg3 {[%clk 0:02:02]}  Rc3 {[%clk 0:00:08]} 38. Bb1 {[%clk 0:01:53]}  g5 {[%clk 0:00:08]} 39. Kg2 {[%clk 0:01:52]}  g4 {[%clk 0:00:07]} 40. hxg4 {[%clk 0:01:53]}  hxg4 {[%clk 0:00:08]} 41. Nd4 {[%clk 0:01:54]}  Nd5 {[%clk 0:00:07]} 42. Re4 {[%clk 0:01:50]}  Nf6 {[%clk 0:00:05]} 43. Rf4 {[%clk 0:01:50]}  Rc5 {[%clk 0:00:03]} 44. Nf5+ {[%clk 0:01:51]}  Kg6 {[%clk 0:00:03]} 45. Ng3+ {[%clk 0:01:47]}  Kg5 {[%clk 0:00:01]} 46. Rxf6 {[%clk 0:01:48]}  Kxf6 {[%clk 0:00:01]} 47. Ne4+ {[%clk 0:01:48]}  Ke5 {[%clk 0:00:02]} 48. Nxc5 {[%clk 0:01:49]}  f5 {[%clk 0:00:03]} 49. Nd3+ {[%clk 0:01:49]}  Kd4 {[%clk 0:00:00]} 50. Kg3 {[%clk 0:01:50]} 1-0


[Site "https://www.chess.com"]

[Event "Titled Tuesday Blitz June 20 Late 2023"]
[White "Keleberda, Tymur"]
[Black "Ibarra Jerez, Jose Carlos"]
[WhiteFideId "14174294"]
[BlackFideId "2226332"]
[WhiteElo "2198"]
[BlackElo "2631"]
[Result "0-1"]
[Round "7"]
[TimeControl "180+2"]
[Date "2023.06.20"]
[WhiteClock "0:02:28"]
[BlackClock "0:02:09"]
[Board "13"]

1. e4 {[%clk 0:03:00]}  c5 {[%clk 0:03:00]} 2. Nf3 {[%clk 0:03:00]}  Nc6 {[%clk 0:03:00]} 3. Bb5 {[%clk 0:03:00]}  e6 {[%clk 0:02:59]} 4. O-O {[%clk 0:02:55]}  Nge7 {[%clk 0:02:59]} 5. Re1 {[%clk 0:02:55]}  Nd4 {[%clk 0:02:59]} 6. c3 {[%clk 0:02:51]}  Nxb5 {[%clk 0:02:58]} 7. d4 {[%clk 0:02:50]}  cxd4 {[%clk 0:02:57]} 8. cxd4 {[%clk 0:02:51]}  d5 {[%clk 0:02:55]} 9. a4 {[%clk 0:02:49]}  Nd6 {[%clk 0:02:51]} 10. Nc3 {[%clk 0:02:48]}  Nxe4 {[%clk 0:02:48]} 11. Nxe4 {[%clk 0:02:49]}  dxe4 {[%clk 0:02:49]} 12. Rxe4 {[%clk 0:02:49]}  Nd5 {[%clk 0:02:47]} 13. Bg5 {[%clk 0:02:47]}  Be7 {[%clk 0:02:47]} 14. Qd2 {[%clk 0:02:43]}  O-O {[%clk 0:02:44]} 15. Rae1 {[%clk 0:02:42]}  f6 {[%clk 0:02:27]} 16. Bh4 {[%clk 0:02:34]}  Bb4 {[%clk 0:02:25]} 17. Qd3 {[%clk 0:02:29]}  Bxe1 {[%clk 0:02:24]} 18. Rxe1 {[%clk 0:02:30]}  Bd7 {[%clk 0:02:20]} 19. Ne5 {[%clk 0:02:28]}  Qa5 {[%clk 0:02:09]} 0-1


[Site "https://www.chess.com"]

[Event "Titled Tuesday Blitz June 20 Late 2023"]
[White "Hakobyan, Aram"]
[Black "Leitao, Rafael"]
[WhiteFideId "13306677"]
[BlackFideId "2101246"]
[WhiteElo "2584"]
[BlackElo "2609"]
[Result "1-0"]
[Round "7"]
[TimeControl "180+2"]
[Date "2023.06.20"]
[WhiteClock "0:01:09"]
[BlackClock "0:00:17"]
[Board "15"]

1. d4 {[%clk 0:03:00]}  Nf6 {[%clk 0:02:59]} 2. c4 {[%clk 0:03:01]}  g6 {[%clk 0:02:59]} 3. Nc3 {[%clk 0:03:01]}  Bg7 {[%clk 0:02:59]} 4. e4 {[%clk 0:03:01]}  d6 {[%clk 0:03:00]} 5. Be2 {[%clk 0:03:02]}  O-O {[%clk 0:02:59]} 6. Nf3 {[%clk 0:03:02]}  Nbd7 {[%clk 0:02:58]} 7. O-O {[%clk 0:03:03]}  e5 {[%clk 0:02:59]} 8. Re1 {[%clk 0:03:03]}  a6 {[%clk 0:02:53]} 9. Be3 {[%clk 0:03:03]}  Ng4 {[%clk 0:02:42]} 10. Bg5 {[%clk 0:03:03]}  f6 {[%clk 0:02:42]} 11. Bh4 {[%clk 0:03:03]}  h5 {[%clk 0:02:32]} 12. Bg3 {[%clk 0:02:55]}  Nh6 {[%clk 0:02:20]} 13. dxe5 {[%clk 0:02:47]}  dxe5 {[%clk 0:02:20]} 14. Qb3 {[%clk 0:02:41]}  Nc5 {[%clk 0:02:12]} 15. Qa3 {[%clk 0:02:40]}  b6 {[%clk 0:02:00]} 16. Rad1 {[%clk 0:02:40]}  Qe7 {[%clk 0:01:56]} 17. b4 {[%clk 0:02:35]}  Ne6 {[%clk 0:01:55]} 18. Nd5 {[%clk 0:02:34]}  Qf7 {[%clk 0:01:55]} 19. c5 {[%clk 0:02:34]}  bxc5 {[%clk 0:01:51]} 20. bxc5 {[%clk 0:02:35]}  g5 {[%clk 0:01:49]} 21. h4 {[%clk 0:02:26]}  g4 {[%clk 0:01:39]} 22. Nd2 {[%clk 0:02:25]}  f5 {[%clk 0:01:39]} 23. exf5 {[%clk 0:02:18]}  Nxf5 {[%clk 0:01:27]} 24. Bc4 {[%clk 0:02:15]}  Kh8 {[%clk 0:01:21]} 25. Ne4 {[%clk 0:02:10]}  Rb8 {[%clk 0:01:15]} 26. c6 {[%clk 0:02:09]}  Nfd4 {[%clk 0:01:10]} 27. Qe7 {[%clk 0:01:29]}  Qxe7 {[%clk 0:00:42]} 28. Nxe7 {[%clk 0:01:29]}  Kh7 {[%clk 0:00:42]} 29. Bd3 {[%clk 0:01:27]}  Kh6 {[%clk 0:00:39]} 30. Ng5 {[%clk 0:01:16]}  Nxg5 {[%clk 0:00:37]} 31. hxg5+ {[%clk 0:01:17]}  Kxg5 {[%clk 0:00:37]} 32. Bxe5 {[%clk 0:01:15]}  Bxe5 {[%clk 0:00:36]} 33. Rxe5+ {[%clk 0:01:16]}  Kf6 {[%clk 0:00:37]} 34. Rde1 {[%clk 0:01:16]}  Be6 {[%clk 0:00:33]} 35. Nd5+ {[%clk 0:01:15]}  Bxd5 {[%clk 0:00:33]} 36. Rxd5 {[%clk 0:01:16]}  Rbd8 {[%clk 0:00:33]} 37. Rxh5 {[%clk 0:01:14]}  Rg8 {[%clk 0:00:26]} 38. Bxa6 {[%clk 0:01:10]}  Nxc6 {[%clk 0:00:23]} 39. Rh6+ {[%clk 0:01:09]}  Rg6 {[%clk 0:00:17]} 40. Rxg6+ {[%clk 0:01:09]} 1-0


[Site "https://www.chess.com"]

[Event "Titled Tuesday Blitz June 20 Late 2023"]
[White "Sattarov, Bobir"]
[Black "Bortnyk, Mykola"]
[WhiteFideId "14203081"]
[BlackFideId "14120836"]
[WhiteElo "2351"]
[BlackElo "2592"]
[Result "0-1"]
[Round "7"]
[TimeControl "180+2"]
[Date "2023.06.20"]
[WhiteClock "0:00:00"]
[BlackClock "0:00:25"]
[Board "16"]

1. e4 {[%clk 0:02:59]}  Nf6 {[%clk 0:02:59]} 2. e5 {[%clk 0:02:59]}  Nd5 {[%clk 0:03:00]} 3. c4 {[%clk 0:03:00]}  Nb6 {[%clk 0:03:00]} 4. d4 {[%clk 0:03:00]}  d6 {[%clk 0:03:01]} 5. exd6 {[%clk 0:03:01]}  cxd6 {[%clk 0:03:01]} 6. Nc3 {[%clk 0:03:02]}  g6 {[%clk 0:03:02]} 7. Bd3 {[%clk 0:03:03]}  Bg7 {[%clk 0:03:02]} 8. Nge2 {[%clk 0:02:59]}  Nc6 {[%clk 0:03:02]} 9. Be3 {[%clk 0:02:58]}  e5 {[%clk 0:02:59]} 10. dxe5 {[%clk 0:02:46]}  Nxe5 {[%clk 0:02:57]} 11. b3 {[%clk 0:02:40]}  Nxd3+ {[%clk 0:02:55]} 12. Qxd3 {[%clk 0:02:39]}  Bf5 {[%clk 0:02:56]} 13. Qd2 {[%clk 0:02:38]}  d5 {[%clk 0:02:52]} 14. Bd4 {[%clk 0:02:33]}  f6 {[%clk 0:02:32]} 15. Bxb6 {[%clk 0:02:23]}  axb6 {[%clk 0:02:31]} 16. Qxd5 {[%clk 0:02:13]}  Qxd5 {[%clk 0:02:31]} 17. Nxd5 {[%clk 0:02:14]}  Kf7 {[%clk 0:02:31]} 18. O-O {[%clk 0:01:53]}  b5 {[%clk 0:02:32]} 19. Nc7 {[%clk 0:01:43]}  bxc4 {[%clk 0:02:18]} 20. Nxa8 {[%clk 0:01:42]}  Rxa8 {[%clk 0:02:19]} 21. Rfd1 {[%clk 0:01:31]}  Bd3 {[%clk 0:02:13]} 22. Nf4 {[%clk 0:01:16]}  f5 {[%clk 0:02:12]} 23. Rac1 {[%clk 0:01:08]}  cxb3 {[%clk 0:01:54]} 24. axb3 {[%clk 0:01:04]}  Bb5 {[%clk 0:01:49]} 25. Rc7+ {[%clk 0:01:03]}  Kg8 {[%clk 0:01:49]} 26. Rxb7 {[%clk 0:01:02]}  Bc6 {[%clk 0:01:48]} 27. Rc7 {[%clk 0:00:59]}  Be4 {[%clk 0:01:48]} 28. Ne6 {[%clk 0:00:49]}  Be5 {[%clk 0:01:45]} 29. Rcd7 {[%clk 0:00:48]}  Bf6 {[%clk 0:01:40]} 30. Rc7 {[%clk 0:00:38]}  Be5 {[%clk 0:01:40]} 31. Rc5 {[%clk 0:00:36]}  Bd6 {[%clk 0:01:34]} 32. Rcc1 {[%clk 0:00:25]}  Ra6 {[%clk 0:01:09]} 33. Rc8+ {[%clk 0:00:20]}  Kf7 {[%clk 0:01:08]} 34. Ng5+ {[%clk 0:00:21]}  Kf6 {[%clk 0:01:07]} 35. Nxe4+ {[%clk 0:00:20]}  fxe4 {[%clk 0:01:07]} 36. g3 {[%clk 0:00:18]}  Be5 {[%clk 0:01:01]} 37. Rc4 {[%clk 0:00:17]}  e3 {[%clk 0:01:01]} 38. fxe3 {[%clk 0:00:17]}  Ra3 {[%clk 0:01:02]} 39. Rb4 {[%clk 0:00:16]}  Ra2 {[%clk 0:01:01]} 40. Rb5 {[%clk 0:00:15]}  Ke6 {[%clk 0:00:57]} 41. Rdd5 {[%clk 0:00:14]}  Bd6 {[%clk 0:00:53]} 42. e4 {[%clk 0:00:12]}  Bc7 {[%clk 0:00:49]} 43. Rdc5 {[%clk 0:00:12]}  Bd8 {[%clk 0:00:44]} 44. Rc8 {[%clk 0:00:09]}  Be7 {[%clk 0:00:39]} 45. Rb6+ {[%clk 0:00:08]}  Kd7 {[%clk 0:00:39]} 46. Rc4 {[%clk 0:00:07]}  Bg5 {[%clk 0:00:39]} 47. Rb5 {[%clk 0:00:04]}  Be3+ {[%clk 0:00:39]} 48. Kf1 {[%clk 0:00:05]}  Rf2+ {[%clk 0:00:35]} 49. Kg1 {[%clk 0:00:03]}  Rf5+ {[%clk 0:00:27]} 50. Kg2 {[%clk 0:00:03]}  Rxb5 {[%clk 0:00:28]} 51. Kf3 {[%clk 0:00:02]}  Rxb3 {[%clk 0:00:26]} 52. Kg4 {[%clk 0:00:00]}  Bg1 {[%clk 0:00:25]} 0-1


[Site "https://www.chess.com"]

[Event "Titled Tuesday Blitz June 20 Late 2023"]
[White "Riehle, Marco"]
[Black "Makhnev, Denis"]
[WhiteFideId "12904392"]
[BlackFideId "13707647"]
[WhiteElo "2462"]
[BlackElo "2515"]
[Result "1-0"]
[Round "7"]
[TimeControl "180+2"]
[Date "2023.06.20"]
[WhiteClock "0:01:06"]
[BlackClock "0:00:22"]
[Board "17"]

1. e4 {[%clk 0:02:59]}  c6 {[%clk 0:03:00]} 2. c4 {[%clk 0:02:58]}  d5 {[%clk 0:03:01]} 3. cxd5 {[%clk 0:02:59]}  cxd5 {[%clk 0:03:02]} 4. exd5 {[%clk 0:03:00]}  Nf6 {[%clk 0:03:02]} 5. Nc3 {[%clk 0:03:01]}  g6 {[%clk 0:03:03]} 6. Bc4 {[%clk 0:03:01]}  Bg7 {[%clk 0:03:03]} 7. Nf3 {[%clk 0:03:02]}  O-O {[%clk 0:03:03]} 8. O-O {[%clk 0:03:02]}  Nbd7 {[%clk 0:03:04]} 9. d3 {[%clk 0:03:02]}  a6 {[%clk 0:03:02]} 10. a4 {[%clk 0:03:02]}  Nb6 {[%clk 0:02:52]} 11. Qb3 {[%clk 0:03:00]}  Bg4 {[%clk 0:02:52]} 12. Ne5 {[%clk 0:03:00]}  Bf5 {[%clk 0:02:52]} 13. Re1 {[%clk 0:03:00]}  Rc8 {[%clk 0:02:43]} 14. Be3 {[%clk 0:02:57]}  Nxc4 {[%clk 0:02:42]} 15. dxc4 {[%clk 0:02:57]}  Qc7 {[%clk 0:02:31]} 16. Bd4 {[%clk 0:02:57]}  Ng4 {[%clk 0:02:27]} 17. Bb6 {[%clk 0:02:48]}  Qd6 {[%clk 0:02:20]} 18. c5 {[%clk 0:02:41]}  Qb8 {[%clk 0:02:20]} 19. Nxg4 {[%clk 0:02:36]}  Bxg4 {[%clk 0:02:21]} 20. Qc4 {[%clk 0:02:30]}  h5 {[%clk 0:02:12]} 21. Rxe7 {[%clk 0:02:30]}  Bf5 {[%clk 0:01:43]} 22. Rd1 {[%clk 0:02:21]}  Be5 {[%clk 0:01:33]} 23. g3 {[%clk 0:02:10]}  Bd6 {[%clk 0:01:31]} 24. Re3 {[%clk 0:02:03]}  Bxc5 {[%clk 0:01:23]} 25. Bxc5 {[%clk 0:02:02]}  b6 {[%clk 0:01:24]} 26. b4 {[%clk 0:01:58]}  bxc5 {[%clk 0:01:24]} 27. bxc5 {[%clk 0:01:59]}  Qb2 {[%clk 0:01:25]} 28. c6 {[%clk 0:01:52]}  Bg4 {[%clk 0:01:22]} 29. Rde1 {[%clk 0:01:46]}  Rfd8 {[%clk 0:01:18]} 30. Ne4 {[%clk 0:01:41]}  Qe5 {[%clk 0:01:12]} 31. d6 {[%clk 0:01:32]}  Be6 {[%clk 0:01:08]} 32. Qc3 {[%clk 0:01:19]}  Qxc3 {[%clk 0:00:50]} 33. Rxc3 {[%clk 0:01:20]}  f5 {[%clk 0:00:51]} 34. Ng5 {[%clk 0:01:20]}  Bd5 {[%clk 0:00:51]} 35. d7 {[%clk 0:01:14]}  Rxc6 {[%clk 0:00:31]} 36. Re8+ {[%clk 0:01:13]}  Kg7 {[%clk 0:00:32]} 37. Rxc6 {[%clk 0:01:13]}  Rxd7 {[%clk 0:00:32]} 38. Rc1 {[%clk 0:01:09]}  Bb7 {[%clk 0:00:32]} 39. Rc7 {[%clk 0:01:05]}  Rxc7 {[%clk 0:00:29]} 40. Ne6+ {[%clk 0:01:05]}  Kf7 {[%clk 0:00:22]} 41. Nxc7 {[%clk 0:01:06]} 1-0


[Site "https://www.chess.com"]

[Event "Titled Tuesday Blitz June 20 Late 2023"]
[White "Can, Isik"]
[Black "Steinberg, Nitzan"]
[WhiteFideId "6383742"]
[BlackFideId "2801795"]
[WhiteElo "2374"]
[BlackElo "2486"]
[Result "1-0"]
[Round "7"]
[TimeControl "180+2"]
[Date "2023.06.20"]
[WhiteClock "0:00:19"]
[BlackClock "0:00:02"]
[Board "19"]

1. e4 {[%clk 0:03:00]}  g6 {[%clk 0:02:58]} 2. d4 {[%clk 0:02:59]}  Bg7 {[%clk 0:02:58]} 3. Nf3 {[%clk 0:02:56]}  d6 {[%clk 0:02:59]} 4. c3 {[%clk 0:02:56]}  Nf6 {[%clk 0:02:57]} 5. Bd3 {[%clk 0:02:56]}  O-O {[%clk 0:02:58]} 6. h3 {[%clk 0:02:55]}  Nc6 {[%clk 0:02:56]} 7. O-O {[%clk 0:02:55]}  e5 {[%clk 0:02:57]} 8. Re1 {[%clk 0:02:55]}  a5 {[%clk 0:02:57]} 9. Be3 {[%clk 0:02:54]}  Re8 {[%clk 0:02:56]} 10. Nbd2 {[%clk 0:02:53]}  Nh5 {[%clk 0:02:51]} 11. Bb5 {[%clk 0:02:31]}  Bd7 {[%clk 0:02:48]} 12. Qa4 {[%clk 0:02:24]}  Nf4 {[%clk 0:02:27]} 13. Bxf4 {[%clk 0:02:20]}  exf4 {[%clk 0:02:27]} 14. Nc4 {[%clk 0:02:14]}  Nb8 {[%clk 0:02:22]} 15. Bxd7 {[%clk 0:02:14]}  Nxd7 {[%clk 0:02:20]} 16. e5 {[%clk 0:02:02]}  d5 {[%clk 0:02:14]} 17. Ncd2 {[%clk 0:02:01]}  Nb6 {[%clk 0:02:13]} 18. Qb5 {[%clk 0:01:59]}  c6 {[%clk 0:02:10]} 19. Qd3 {[%clk 0:01:59]}  a4 {[%clk 0:02:10]} 20. b3 {[%clk 0:01:51]}  a3 {[%clk 0:02:07]} 21. Nf1 {[%clk 0:01:44]}  Re6 {[%clk 0:01:55]} 22. Re2 {[%clk 0:01:43]}  h6 {[%clk 0:01:52]} 23. N1h2 {[%clk 0:01:37]}  h5 {[%clk 0:01:48]} 24. Ne1 {[%clk 0:01:33]}  Nd7 {[%clk 0:01:45]} 25. Nhf3 {[%clk 0:01:29]}  Qe7 {[%clk 0:01:38]} 26. h4 {[%clk 0:01:20]}  Bh6 {[%clk 0:01:27]} 27. Qd2 {[%clk 0:01:20]}  f6 {[%clk 0:01:24]} 28. Nd3 {[%clk 0:01:20]}  fxe5 {[%clk 0:01:18]} 29. Ndxe5 {[%clk 0:01:21]}  Nxe5 {[%clk 0:01:18]} 30. Rxe5 {[%clk 0:01:18]}  Rxe5 {[%clk 0:01:18]} 31. dxe5 {[%clk 0:01:10]}  Rf8 {[%clk 0:01:15]} 32. Re1 {[%clk 0:01:08]}  Qe6 {[%clk 0:01:12]} 33. Qc1 {[%clk 0:01:07]}  Ra8 {[%clk 0:01:03]} 34. Qc2 {[%clk 0:01:01]}  c5 {[%clk 0:01:02]} 35. Qd3 {[%clk 0:00:58]}  Re8 {[%clk 0:00:53]} 36. Qb5 {[%clk 0:00:53]}  Qc6 {[%clk 0:00:53]} 37. Qa5 {[%clk 0:00:53]}  Bf8 {[%clk 0:00:30]} 38. Qxa3 {[%clk 0:00:51]}  Be7 {[%clk 0:00:24]} 39. Qc1 {[%clk 0:00:50]}  Rf8 {[%clk 0:00:24]} 40. Qc2 {[%clk 0:00:50]}  Qe6 {[%clk 0:00:24]} 41. Qd3 {[%clk 0:00:49]}  Kg7 {[%clk 0:00:24]} 42. Rd1 {[%clk 0:00:49]}  Rd8 {[%clk 0:00:25]} 43. Qb5 {[%clk 0:00:48]}  Qc6 {[%clk 0:00:24]} 44. Qe2 {[%clk 0:00:48]}  Qe6 {[%clk 0:00:25]} 45. a4 {[%clk 0:00:43]}  d4 {[%clk 0:00:20]} 46. cxd4 {[%clk 0:00:39]}  Qxb3 {[%clk 0:00:20]} 47. e6 {[%clk 0:00:27]}  Bf6 {[%clk 0:00:14]} 48. d5 {[%clk 0:00:22]}  Be7 {[%clk 0:00:05]} 49. Qe5+ {[%clk 0:00:21]}  Bf6 {[%clk 0:00:05]} 50. Qc7+ {[%clk 0:00:20]}  Kg8 {[%clk 0:00:05]} 51. Re1 {[%clk 0:00:20]}  Qxd5 {[%clk 0:00:02]} 52. Qf7+ {[%clk 0:00:19]} 1-0


[Site "https://www.chess.com"]

[Event "Titled Tuesday Blitz June 20 Late 2023"]
[White "Barp, Alberto"]
[Black "Rustemov, Alexander"]
[WhiteFideId "872555"]
[BlackFideId "4119002"]
[WhiteElo "2313"]
[BlackElo "2871"]
[Result "0-1"]
[Round "7"]
[TimeControl "180+2"]
[Date "2023.06.20"]
[WhiteClock "0:00:34"]
[BlackClock "0:00:18"]
[Board "20"]

1. d4 {[%clk 0:03:00]}  d5 {[%clk 0:02:54]} 2. c4 {[%clk 0:03:01]}  c6 {[%clk 0:02:53]} 3. Nf3 {[%clk 0:03:00]}  Nf6 {[%clk 0:02:53]} 4. Nc3 {[%clk 0:02:57]}  a6 {[%clk 0:02:52]} 5. cxd5 {[%clk 0:02:48]}  cxd5 {[%clk 0:02:52]} 6. Bf4 {[%clk 0:02:48]}  Nc6 {[%clk 0:02:51]} 7. e3 {[%clk 0:02:48]}  Bg4 {[%clk 0:02:51]} 8. h3 {[%clk 0:02:47]}  Bxf3 {[%clk 0:02:50]} 9. Qxf3 {[%clk 0:02:47]}  e6 {[%clk 0:02:50]} 10. Bd3 {[%clk 0:02:46]}  Nb4 {[%clk 0:02:40]} 11. Bb1 {[%clk 0:02:46]}  Bd6 {[%clk 0:02:39]} 12. Bg5 {[%clk 0:02:45]}  h6 {[%clk 0:02:33]} 13. Bh4 {[%clk 0:02:45]}  Be7 {[%clk 0:02:26]} 14. O-O {[%clk 0:02:44]}  O-O {[%clk 0:02:25]} 15. Rd1 {[%clk 0:02:43]}  Rc8 {[%clk 0:02:25]} 16. Bg3 {[%clk 0:02:08]}  Bd6 {[%clk 0:02:14]} 17. Bxd6 {[%clk 0:02:03]}  Qxd6 {[%clk 0:02:14]} 18. e4 {[%clk 0:02:03]}  dxe4 {[%clk 0:02:09]} 19. Nxe4 {[%clk 0:02:04]}  Nxe4 {[%clk 0:01:58]} 20. Qxe4 {[%clk 0:02:05]}  g6 {[%clk 0:01:53]} 21. Qxb7 {[%clk 0:02:04]}  Nc2 {[%clk 0:01:34]} 22. Bxc2 {[%clk 0:02:03]}  Rxc2 {[%clk 0:01:35]} 23. Rac1 {[%clk 0:02:00]}  Rxc1 {[%clk 0:01:22]} 24. Rxc1 {[%clk 0:02:01]}  Qxd4 {[%clk 0:01:22]} 25. Rc8 {[%clk 0:01:53]}  Qd1+ {[%clk 0:01:15]} 26. Kh2 {[%clk 0:01:52]}  Qd6+ {[%clk 0:01:15]} 27. Kg1 {[%clk 0:01:51]}  Qd1+ {[%clk 0:01:05]} 28. Kh2 {[%clk 0:01:51]}  Qd6+ {[%clk 0:01:05]} 29. g3 {[%clk 0:01:52]}  Qd4 {[%clk 0:00:53]} 30. Rxf8+ {[%clk 0:01:44]}  Kxf8 {[%clk 0:00:54]} 31. Kg1 {[%clk 0:01:40]}  Qd1+ {[%clk 0:00:48]} 32. Kg2 {[%clk 0:01:40]}  Qa4 {[%clk 0:00:47]} 33. a3 {[%clk 0:01:34]}  Kg7 {[%clk 0:00:46]} 34. h4 {[%clk 0:01:33]}  g5 {[%clk 0:00:40]} 35. hxg5 {[%clk 0:01:32]}  hxg5 {[%clk 0:00:41]} 36. Qf3 {[%clk 0:01:15]}  a5 {[%clk 0:00:37]} 37. Qc3+ {[%clk 0:01:11]}  f6 {[%clk 0:00:35]} 38. b4 {[%clk 0:01:09]}  axb4 {[%clk 0:00:34]} 39. axb4 {[%clk 0:01:03]}  Qa8+ {[%clk 0:00:34]} 40. Kg1 {[%clk 0:01:00]}  Qd5 {[%clk 0:00:33]} 41. Qc2 {[%clk 0:00:56]}  g4 {[%clk 0:00:30]} 42. Qb1 {[%clk 0:00:54]}  Qb5 {[%clk 0:00:30]} 43. Qe4 {[%clk 0:00:55]}  f5 {[%clk 0:00:25]} 44. Qd4+ {[%clk 0:00:54]}  Kg6 {[%clk 0:00:24]} 45. Qd6 {[%clk 0:00:51]}  Qe2 {[%clk 0:00:23]} 46. Qf4 {[%clk 0:00:43]}  e5 {[%clk 0:00:22]} 47. Qc1 {[%clk 0:00:39]}  Qb5 {[%clk 0:00:22]} 48. Qc5 {[%clk 0:00:35]}  Qxc5 {[%clk 0:00:21]} 49. bxc5 {[%clk 0:00:35]}  Kf6 {[%clk 0:00:22]} 50. Kg2 {[%clk 0:00:33]}  Ke6 {[%clk 0:00:22]} 51. f3 {[%clk 0:00:34]}  gxf3+ {[%clk 0:00:21]} 52. Kxf3 {[%clk 0:00:34]}  Kd5 {[%clk 0:00:22]} 53. g4 {[%clk 0:00:32]}  fxg4+ {[%clk 0:00:17]} 54. Kxg4 {[%clk 0:00:33]}  Kxc5 {[%clk 0:00:17]} 55. Kf3 {[%clk 0:00:34]}  Kd4 {[%clk 0:00:18]} 56. Kf2 {[%clk 0:00:34]}  Kd3 {[%clk 0:00:18]} 57. Ke1 {[%clk 0:00:34]}  Ke3 {[%clk 0:00:18]} 0-1


[Site "https://www.chess.com"]

[Event "Titled Tuesday Blitz June 20 Late 2023"]
[White "Cardoso Cardoso, Jose Gabriel"]
[Black "Katz, Alexander"]
[WhiteFideId "4430492"]
[BlackFideId "2039796"]
[WhiteElo "2484"]
[BlackElo "2389"]
[Result "1-0"]
[Round "7"]
[TimeControl "180+2"]
[Date "2023.06.20"]
[WhiteClock "0:00:47"]
[BlackClock "0:00:02"]
[Board "23"]

1. e4 {[%clk 0:03:00]}  d6 {[%clk 0:02:56]} 2. d4 {[%clk 0:03:01]}  Nf6 {[%clk 0:02:57]} 3. Nc3 {[%clk 0:03:01]}  g6 {[%clk 0:02:57]} 4. Be3 {[%clk 0:03:01]}  c6 {[%clk 0:02:57]} 5. Qd2 {[%clk 0:02:58]}  b5 {[%clk 0:02:56]} 6. f3 {[%clk 0:02:53]}  e5 {[%clk 0:02:47]} 7. Nge2 {[%clk 0:02:42]}  b4 {[%clk 0:02:43]} 8. Nd1 {[%clk 0:02:42]}  exd4 {[%clk 0:02:42]} 9. Nxd4 {[%clk 0:02:40]}  c5 {[%clk 0:02:41]} 10. Ne2 {[%clk 0:02:37]}  Bg7 {[%clk 0:02:39]} 11. a3 {[%clk 0:02:38]}  bxa3 {[%clk 0:02:28]} 12. Rxa3 {[%clk 0:02:39]}  O-O {[%clk 0:02:28]} 13. Nec3 {[%clk 0:02:39]}  Nc6 {[%clk 0:02:26]} 14. Bc4 {[%clk 0:02:37]}  Ne5 {[%clk 0:02:24]} 15. Be2 {[%clk 0:02:34]}  Be6 {[%clk 0:02:22]} 16. b3 {[%clk 0:02:33]}  Re8 {[%clk 0:02:14]} 17. O-O {[%clk 0:02:32]}  d5 {[%clk 0:02:13]} 18. exd5 {[%clk 0:02:24]}  Nxd5 {[%clk 0:02:09]} 19. Nxd5 {[%clk 0:02:18]}  Bxd5 {[%clk 0:02:04]} 20. Bxc5 {[%clk 0:02:15]}  Rc8 {[%clk 0:01:56]} 21. Bf2 {[%clk 0:02:04]}  Qd6 {[%clk 0:01:25]} 22. Rxa7 {[%clk 0:01:56]}  Qc6 {[%clk 0:01:19]} 23. c4 {[%clk 0:01:53]}  Be6 {[%clk 0:01:14]} 24. Nc3 {[%clk 0:01:50]}  Rcd8 {[%clk 0:01:04]} 25. Qf4 {[%clk 0:01:46]}  Nd3 {[%clk 0:00:58]} 26. Bxd3 {[%clk 0:01:44]}  Rxd3 {[%clk 0:00:59]} 27. Ne4 {[%clk 0:01:38]}  Rxb3 {[%clk 0:00:55]} 28. Nf6+ {[%clk 0:01:33]}  Bxf6 {[%clk 0:00:34]} 29. Qxf6 {[%clk 0:01:33]}  Bd5 {[%clk 0:00:31]} 30. Qxc6 {[%clk 0:01:21]}  Bxc6 {[%clk 0:00:32]} 31. Rc7 {[%clk 0:01:20]}  Re6 {[%clk 0:00:28]} 32. Re1 {[%clk 0:01:16]}  Rxe1+ {[%clk 0:00:21]} 33. Bxe1 {[%clk 0:01:17]}  Be8 {[%clk 0:00:19]} 34. Rc8 {[%clk 0:01:13]}  Kf8 {[%clk 0:00:19]} 35. Bh4 {[%clk 0:01:10]}  f5 {[%clk 0:00:14]} 36. Rc7 {[%clk 0:01:09]}  h6 {[%clk 0:00:14]} 37. Be7+ {[%clk 0:01:07]}  Kf7 {[%clk 0:00:13]} 38. Bg5+ {[%clk 0:01:06]}  Ke6 {[%clk 0:00:09]} 39. Bxh6 {[%clk 0:01:01]}  Rb1+ {[%clk 0:00:08]} 40. Kf2 {[%clk 0:01:01]}  Rb2+ {[%clk 0:00:09]} 41. Kg3 {[%clk 0:01:01]}  Ba4 {[%clk 0:00:10]} 42. Bg5 {[%clk 0:00:57]}  Rc2 {[%clk 0:00:09]} 43. Re7+ {[%clk 0:00:53]}  Kd6 {[%clk 0:00:09]} 44. Rg7 {[%clk 0:00:52]}  Rxc4 {[%clk 0:00:09]} 45. Rxg6+ {[%clk 0:00:53]}  Kd5 {[%clk 0:00:10]} 46. Bf4 {[%clk 0:00:52]}  Bc2 {[%clk 0:00:04]} 47. h4 {[%clk 0:00:51]}  Rc8 {[%clk 0:00:02]} 48. h5 {[%clk 0:00:50]}  Rh8 {[%clk 0:00:03]} 49. h6 {[%clk 0:00:50]}  Rh7 {[%clk 0:00:04]} 50. Kh4 {[%clk 0:00:48]}  Ba4 {[%clk 0:00:03]} 51. Kg5 {[%clk 0:00:47]}  Be8 {[%clk 0:00:03]} 52. Rg7 {[%clk 0:00:47]}  Rxg7+ {[%clk 0:00:03]} 53. hxg7 {[%clk 0:00:47]}  Bf7 {[%clk 0:00:02]} 54. Kf6 {[%clk 0:00:47]} 1-0


[Site "https://www.chess.com"]